Cogmind - Beta 14 @@@ ROGUE MODE // 2025.01.04 @ 19:05:45 Player: SuperSwiss Result: Self-destructed Performance ------------- Evolutions (2) 1000 Regions Visited (6) 1200 Robots Destroyed (35) 175 Value Destroyed (1157) 1157 Prototype IDs (0) 0 Alien Tech Used (0) 0 Bonus (70) 70 TOTAL SCORE: 3602 Bonus ------- Follower Combat Kills 70 Cogmind --------- Core Integrity 442/550 Matter 300/300 Energy 100/100 System Corruption 9% Temperature Cool (0) Movement Walking (120) Location -8/Materials Parts ------- > --- POWER (1) -------- (None) > --- PROPULSION (3) --- Aluminum Leg > --- UTILITY (4) ------ Signal Interpreter > --- WEAPON (3) ------- Heavy Mace > --- INVENTORY (5) ---- Terrain Scan Processor Grenade Launcher Peak State ------------ > --- POWER ------------ (None) > --- PROPULSION ------- Aluminum Leg Improved Aluminum Leg > --- UTILITY ---------- Improved Heat Sink Medium Matter Pod Signal Interpreter Hardened Light Armor Plating > --- WEAPON ----------- Particle Gun Ion Cannon Heavy Mace > --- INVENTORY -------- Terrain Scan Processor Grenade Launcher [Rating: 18] Favorites ----------- Power Light Ion Engine Engine Light Ion Engine Power Core Light Nuclear Core Propulsion Improved Aluminum Leg Leg Improved Aluminum Leg Utility Small Storage Unit Device Improved Heat Sink Storage Small Storage Unit Processor Signal Interpreter Protection Hardened Light Armor Plating Weapon Heavy EM Pulse Gun Energy Gun Heavy EM Pulse Gun Energy Cannon Ion Cannon Ballistic Gun Assault Rifle Launcher Grenade Launcher Special Weapon Mining Laser Impact Weapon Heavy Mace Build | -11 -10 -9 -9 -9 -8 -8 ------- Run | Yrd Mat Mat Min Exi Min Mat Slots Evolved 4 | . . 2 . . . 2 Power . | . . . . . . . Propulsion 1 | . . 1 . . . . Utility 2 | . . 1 . . . 1 Weapon 1 | . . . . . . 1 Parts Attached 40 | 3 12 6 4 . 12 3 Power 3 | 1 . 1 . . 1 . Engine 2 | 1 . 1 . . . . Core 1 | . . . . . 1 . Reactor . | . . . . . . . Propulsion 7 | . 5 1 . . 1 . Treads . | . . . . . . . Leg 7 | . 5 1 . . 1 . Wheel . | . . . . . . . Hover . | . . . . . . . Flight . | . . . . . . . Utility 7 | . 2 2 . . 1 2 Device 1 | . . . . . 1 . Storage 4 | . 2 1 . . . 1 Processor 1 | . . . . . . 1 Hackware . | . . . . . . . Protection 1 | . . 1 . . . . Artifact . | . . . . . . . Weapon 23 | 2 5 2 4 . 9 1 Energy Gun 11 | 1 2 2 2 . 3 1 Energy Cannon 1 | . . . . . 1 . Ballistic Gun 2 | 1 1 . . . . . Ballistic Cannon . | . . . . . . . Launcher 6 | . 2 . 2 . 2 . Special Weapon 2 | . . . . . 2 . Impact Weapon 1 | . . . . . 1 . Slashing Weapon . | . . . . . . . Piercing Weapon . | . . . . . . . Special Melee Weapon . | . . . . . . . Unidentified Prototypes . | . . . . . . . Corrupted Parts 1 | . . . . . 1 . System Corruption 4 | . . . . . 4 . Parts Lost 19 | . 2 2 2 . 7 6 Power 3 | . . 1 . . 2 . Propulsion 4 | . 1 . . . 2 1 Utility 4 | . . . . . 1 3 Weapon 8 | . 1 1 2 . 2 2 Highest Loss Streak 6 | . 2 1 2 . 5 6 To Critical Strikes 1 | . . . . . . 1 Average Slot Usage (%) 88 | . 89 88 97 100 84 62 Engine 9 | . 14 10 11 11 2 . Leg 27 | . 27 33 33 33 22 13 Storage 19 | . 18 22 22 22 20 7 Protection 5 | . . . 11 11 11 6 Energy Gun 12 | . 14 22 13 . 7 4 Energy Cannon 1 | . . . . . 2 5 Ballistic Gun 2 | . 9 . . . . . Launcher 4 | . 3 . 6 22 4 . Special Weapon 1 | . . . . . 5 . Impact Weapon 1 | . . . . . 1 9 Peak Build Rating 18 | 3 12 15 15 14 16 18 Average Rating 11 | 1 7 13 14 14 13 12 On Entrance 10 | . 3 12 15 14 14 14 Naked Turns . | . . . . . . . Heaviest Build 24 | 6 16 23 23 23 24 20 Greatest Support 39 | 3 26 39 39 39 39 23 Greatest Overweight (x) 1 | 1 1 . . . 1 1 Average Overweight (x) . | . . . . . . . Largest Inventory Capacity 8 | 5 8 8 8 8 8 5 Average Capacity 7 | 5 7 8 8 8 7 5 Most Carried 8 | 5 8 8 8 7 8 4 Average Carried 5 | 4 5 6 6 7 6 2 Final Capacity 8 | 5 8 8 8 8 5 5 Final Carried 8 | 5 8 6 7 7 5 2 Class Distribution -------------------- 100% | Mutant Dominant Class ---------------- Mutant | -10/Materials Mutant | -9/Materials Mutant | -9/Mines Mutant | -9/Exiles Mutant | -8/Mines Mutant | -8/Materials Resources | -11 -10 -9 -9 -9 -8 -8 ----------- Run | Yrd Mat Mat Min Exi Min Mat Matter Collected 844 | 230 269 60 7 . 278 . Remotely . | . . . . . . . Salvage Created 1199 | . 406 260 134 . 228 171 Parts 62 | . 25 22 8 . 4 3 Haulers Intercepted . | . . . . . . . Recyclers Shooed 1 | . . . 1 . . . Parts Field Recycled . | . . . . . . . Retrieved Matter . | . . . . . . . Parts Self-Destructed . | . . . . . . . Prevented . | . . . . . . . Kills | -11 -10 -9 -9 -9 -8 -8 ------- Run | Yrd Mat Mat Min Exi Min Mat Combat Hostiles Destroyed 34 | . 10 9 5 . 6 4 Melee 2 | . . . . . . 2 Guns 15 | . 4 8 3 . . . AOE 12 | . 6 . 2 . 4 . Classes Destroyed 8 | . 3 2 1 . 1 1 Worker 1 | . 1 . . . . . Tunneler 1 | . 1 . . . . . Recycler 1 | . . . . . 1 . Swarmer 6 | . . 6 . . . . Grunt 23 | . 10 1 3 . 6 3 Brawler 1 | . . . . . . 1 Sentry 2 | . . 2 . . . . Assembled 2 | . . . 2 . . . Best Kill Streak 8 | . 8 5 2 . 5 2 Combat Bots Only 6 | . 6 5 2 . 4 2 Max Kills in Single Turn 4 | . 4 2 1 . 1 1 Gunslinging 1 | . . 1 . . . . Exploded 3 | . 3 . 1 . 1 . Melee 1 | . . . . . . 1 Uniques/NPCs Destroyed . | . . . . . . . Combat | -11 -10 -9 -9 -9 -8 -8 -------- Run | Yrd Mat Mat Min Exi Min Mat Hostile Shots Fired 194 | . 40 49 12 . 69 24 Missed 56 | . 14 16 4 . 15 7 Damage Taken 2283 | . 427 382 134 . 1034 306 Core 542 | . 129 91 15 . 199 108 Absorbed by Shields . | . . . . . . . Core Remaining (%) 57 | 100 48 . . . 23 . Volleys Fired 81 | . 25 21 8 . 21 6 Largest 2 | . 2 2 2 . 2 2 Hottest 160 | . 90 90 90 . 160 125 Shots Fired 146 | . 50 42 13 . 34 7 Gun 114 | . 48 42 9 . 14 1 Cannon 10 | . . . . . 4 6 Launcher 18 | . 2 . 4 . 12 . Special 4 | . . . . . 4 . Kinetic 14 | . 14 . . . . . Thermal 29 | . . . . . 22 7 Explosive 18 | . 2 . 4 . 12 . Electromagnetic 85 | . 34 42 9 . . . Robot Hit Streak 13 | . 13 7 9 . 5 7 Robot Miss Streak 3 | . 2 3 2 . 3 . Penetration Max . | . . . . . . . Secondary Targets 3 | . . 2 1 . . . Max Gunslinging Chain 1 | . . 1 1 . . . Shots Hit Robots 105 | . 35 27 8 . 18 17 Core Hits 56 | . 17 11 11 . 14 3 Critical Kills 1 | . . . . . . 1 Critical Parts Destroyed 1 | . . . . . 1 . Critical Strikes 3 | . . 1 . . 1 1 Meltdown 1 | . . . . . . 1 Corrupt 1 | . . 1 . . . . Smash 1 | . . . . . 1 . Melee Attacks 19 | . . . . . 4 15 Impact 19 | . . . . . 4 15 Slashing . | . . . . . . . Piercing . | . . . . . . . Sneak Attacks . | . . . . . . . Combat Hostiles . | . . . . . . . Follow-up Attacks . | . . . . . . . Damage Inflicted 3130 | . 925 426 348 . 877 554 Guns 1086 | . 474 378 127 . 93 14 Cannons 187 | . . . . . 47 140 Explosions 1236 | . 450 48 221 . 517 . Melee 596 | . . . . . 196 400 Ramming 1 | . 1 . . . . . Kinetic 146 | . 146 . . . . . Thermal 800 | . 303 48 131 . 164 154 Explosive 754 | . 147 . 90 . 517 . Electromagnetic 833 | . 328 378 127 . . . Impact 596 | . . . . . 196 400 Slashing . | . . . . . . . Piercing . | . . . . . . . Highest Corruption 9 | . . . . . 4 9 Average Corruption 6 | . . . . . 4 7 Corruption Purged . | . . . . . . . Corruption Blocked . | . . . . . . . Effects 1 | . . . . . . 1 Heat Flow Errors 1 | . . . . . . 1 Overload Shots . | . . . . . . . Overflow Damage 169 | . 83 . . . 74 12 Projectiles . | . . . . . . . Explosions 83 | . 83 . . . . . Melee 86 | . . . . . 74 12 Knockbacks 2 | . . . . . 1 1 Impact 2 | . . . . . 1 1 Kinetic . | . . . . . . . Secondary . | . . . . . . . Self-Inflicted Damage 222 | . 114 11 26 . 71 . Shots 7 | . 2 1 1 . 3 . Rammed . | . . . . . . . Targets Rammed 1 | . 1 . . . . . Kicked 1 | . 1 . . . . . Crushed . | . . . . . . . Highest Temperature 367 | . 246 166 162 . 367 249 Average Temperature 111 | . 79 68 64 . 192 89 Received Heat Transfer 948 | . 171 90 57 . 522 108 Effects 1 | . . . . . 1 . Energy Bleed 1 | . . . . . 1 . Siege Activations . | . . . . . . . Robots Corrupted 4 | . . 1 . . 2 1 Combat Hostiles 4 | . . 1 . . 2 1 Parts Fried 10 | . 3 5 . . 1 1 Impact Corruptions 5 | . . . . . 4 1 Robots Melted 1 | . . . . . . 1 Combat Hostiles 1 | . . . . . . 1 Parts Melted 3 | . . . . . . 3 Heat Transferred 1005 | . 200 50 150 . 346 259 Parts Sabotaged . | . . . . . . . Parts Stolen . | . . . . . . . Parts Stripped . | . . . . . . . Power Chain Reactions 5 | . 2 1 2 . . . Alert | -11 -10 -9 -9 -9 -8 -8 ------- Run | Yrd Mat Mat Min Exi Min Mat Peak Influence 376 | . 333 376 221 . 165 90 Initial 146 | . . 140 146 . . 60 Average 140 | . 113 259 179 . 92 62 Maximum Alert Level 1 | . 1 1 1 . . . Low Security (%) 66 | 100 67 15 56 . 100 100 Level 1 33 | . 32 84 43 . . . Level 2 . | . . . . . . . Level 3 . | . . . . . . . Level 4 . | . . . . . . . Level 5 . | . . . . . . . High Security . | . . . . . . . Max Security . | . . . . . . . Squads Dispatched 3 | . 3 . . . . . Investigation 2 | . 2 . . . . . Extermination . | . . . . . . . Reinforcement 1 | . 1 . . . . . Assault . | . . . . . . . Garrison . | . . . . . . . Intercept . | . . . . . . . Searches Triggered . | . . . . . . . Construction Impeded . | . . . . . . . Haulers Reinforced . | . . . . . . . Active Scanning Responses . | . . . . . . . Cargo Convoy Interrupts . | . . . . . . . Stealth | -11 -10 -9 -9 -9 -8 -8 --------- Run | Yrd Mat Mat Min Exi Min Mat Distress Signals 5 | . 3 2 . . . . Communications Jammed . | . . . . . . . Distress Signals . | . . . . . . . Times Spotted 52 | . 17 11 7 . 12 5 Peak Tracking Total 14 | . 4 4 14 . 4 4 Tactical Retreats 2 | . 1 . 1 . . . Traps | -11 -10 -9 -9 -9 -8 -8 ------- Run | Yrd Mat Mat Min Exi Min Mat Traps Triggered 2 | . 2 . . . . . Indirectly . | . . . . . . . Trap Hack Attempts . | . . . . . . . Triggered . | . . . . . . . Disarmed . | . . . . . . . Reprogrammed . | . . . . . . . Reused . | . . . . . . . Traps Extracted . | . . . . . . . Installed . | . . . . . . . Triggered . | . . . . . . . Machines | -11 -10 -9 -9 -9 -8 -8 ---------- Run | Yrd Mat Mat Min Exi Min Mat Machines Disabled 1 | . 1 . . . . . Max in Single Turn 1 | . 1 . . . . . Machines Repaired . | . . . . . . . Machines Dismantled . | . . . . . . . Machines Sabotaged . | . . . . . . . Overloaded Fab Kills . | . . . . . . . Hacking | -11 -10 -9 -9 -9 -8 -8 --------- Run | Yrd Mat Mat Min Exi Min Mat Machines Accessed 3 | . 3 . . . . . Terminals 1 | . 1 . . . . . Fabricators . | . . . . . . . Repair Stations . | . . . . . . . Recycling Units 2 | . 2 . . . . . Scanalyzers . | . . . . . . . Garrison Access . | . . . . . . . Total Hacks 5 | . 5 . . . . . Successful 3 | . 3 . . . . . Failed 2 | . 2 . . . . . Catastrophic 1 | . 1 . . . . . Database Lockouts . | . . . . . . . Manual . | . . . . . . . Terminals 3 | . 3 . . . . . Fabricators . | . . . . . . . Repair Stations . | . . . . . . . Recycling Units 2 | . 2 . . . . . Scanalyzers . | . . . . . . . Garrison Access . | . . . . . . . Terminal Hacks 1 | . 1 . . . . . Level Access Points 1 | . 1 . . . . . Fabricator Hacks . | . . . . . . . Repair Station Hacks . | . . . . . . . Recycling Unit Hacks 2 | . 2 . . . . . Report Inventory 2 | . 2 . . . . . Scanalyzer . | . . . . . . . Garrison Access Hacks . | . . . . . . . Unauthorized Hacks . | . . . . . . . Terminals . | . . . . . . . Fabricators . | . . . . . . . Repair Stations . | . . . . . . . Recycling Units . | . . . . . . . Scanalyzers . | . . . . . . . Garrison Access . | . . . . . . . Data Cores Recovered . | . . . . . . . Used . | . . . . . . . Hacking Detections 2 | . 2 . . . . . Full Trace Events 1 | . 1 . . . . . Feedback Events . | . . . . . . . Feedback Blocked . | . . . . . . . Robot Schematics Acquired . | . . . . . . . Robots Built . | . . . . . . . Authchips . | . . . . . . . Time . | . . . . . . . Total Robot Build Rating . | . . . . . . . Part Schematics Acquired . | . . . . . . . Parts Built . | . . . . . . . Authchips . | . . . . . . . Time . | . . . . . . . Total Part Build Rating . | . . . . . . . Parts Repaired . | . . . . . . . Time . | . . . . . . . Parts Recycled . | . . . . . . . Recycled Matter . | . . . . . . . Retrieved Matter . | . . . . . . . Retrieved Components . | . . . . . . . Parts Scanalyzed . | . . . . . . . Part Schematics Acquired . | . . . . . . . Parts Damaged . | . . . . . . . Bothacking | -11 -10 -9 -9 -9 -8 -8 ------------ Run | Yrd Mat Mat Min Exi Min Mat Used RIF Installer . | . . . . . . . Robots Hacked . | . . . . . . . Non-combat . | . . . . . . . Combat . | . . . . . . . Robot Hacks Applied . | . . . . . . . Relay Couplers Released . | . . . . . . . Fabnet Peak Effective % . | . . . . . . . Robots Rewired . | . . . . . . . Allies Hacked . | . . . . . . . Hacks Repelled . | . . . . . . . Allies | -11 -10 -9 -9 -9 -8 -8 -------- Run | Yrd Mat Mat Min Exi Min Mat Total Allies 1 | . . . 1 . . . Largest Group 1 | . . . 1 1 1 . Highest-Rated Group 31 | . . . 31 31 31 . Highest-Rated Ally 31 | . . . 31 31 31 . Total Orders . | . . . . . . . Ally Attacks 14 | . . . . . 14 . Total Damage 187 | . . . . . 187 . Kills 2 | . . . . . 2 . Allies Corrupted . | . . . . . . . Allies Melted . | . . . . . . . Intel | -11 -10 -9 -9 -9 -8 -8 ------- Run | Yrd Mat Mat Min Exi Min Mat Robot Analysis Total . | . . . . . . . Derelict Logs Recovered 1 | . . . 1 . . . Drone Launches . | . . . . . . . Drone Recoveries . | . . . . . . . Exploration | -11 -10 -9 -9 -9 -8 -8 ------------- Run | Yrd Mat Mat Min Exi Min Mat Turns Passed 1447 | 42 398 232 294 83 267 131 Spaces Moved 804 | 43 224 127 207 54 111 38 Core 43 | 43 . . . . . . Treads . | . . . . . . . Legs 761 | . 224 127 207 54 111 38 Wheels . | . . . . . . . Hover . | . . . . . . . Flight . | . . . . . . . Fastest Speed 50 | 50 120 120 120 120 120 120 Average Speed 119 | 76 120 120 120 120 127 121 Slowest Speed 190 | 100 190 120 120 120 190 190 Overloaded Moves . | . . . . . . . Propulsion Burnouts . | . . . . . . . Robots Hopped . | . . . . . . . Cave-ins Triggered . | . . . . . . . Exploration Rate (%) 21 | 3 37 13 48 9 32 10 Regions Visited 6 Branch Regions 3 Pre-discovered Areas . | . . . . . . . Known Exits Taken 1 | . 1 . . . . . Unknown Exits Taken 5 | 1 . 1 1 1 1 . Scrap Searched 1 | . . . . . 1 . Spaces Dug . | . . . . . . . Terrain Destroyed 114 | . 36 7 31 . 40 . Melee . | . . . . . . . Projectile 3 | . . . . . 3 . AOE 111 | . 36 7 31 . 37 . Terrain Rammed . | . . . . . . . Walls Destroyed . | . . . . . . . Machines Disabled . | . . . . . . . Actions | -11 -10 -9 -9 -9 -8 -8 --------- Run | Yrd Mat Mat Min Exi Min Mat Total 1099 | 50 302 164 239 72 183 89 Wait 123 | . 22 8 16 19 31 27 Move 798 | 42 223 126 206 53 110 38 Hop . | . . . . . . . Pick Up 29 | 5 13 2 4 . 5 . Fast Attach 3 | 3 . . . . . . Attach 20 | . 6 5 2 . 4 3 Detach 1 | . . 1 . . . . Swap 17 | . 6 1 2 . 8 . Drop 7 | . 6 . 1 . . . Fire 81 | . 25 21 8 . 21 6 Melee 19 | . . . . . 4 15 Ram . | . . . . . . . Kick 1 | . 1 . . . . . Crush . | . . . . . . . Escape Stasis . | . . . . . . . Rewire . | . . . . . . . Trap . | . . . . . . . Miscellaneous . | . . . . . . . Route ------- -11/Scrapyard -10/Materials (discovered 4 exits: *Mat x3 / [*Min]) -9/Materials -9/Mines -9/Exiles -8/Mines -8/Materials History --------- Turn | Location | Event 6 | -11/Scrapyard | Discovered new exit (range 16) 43 | -11/Scrapyard | Entered Materials 177 | -10/Materials | Identified exit to Materials 208 | -10/Materials | Discovered new exit (range 13) 342 | -10/Materials | Build established: Mutant 412 | -10/Materials | Core integrity fell below 50% 441 | -10/Materials | Entered another Materials area 441 | -9/Materials | Evolved 2 slots: Propulsion x1, Utility x1 668 | -9/Materials | Discovered new exit (range 4) 673 | -9/Materials | Entered Mines 872 | -9/Mines | Assembled infested the area 895 | -9/Mines | Met 8R-AWN 954 | -9/Mines | Received a Mining Laser from a helpful Derelict 961 | -9/Mines | Discovered new exit (range 5) 967 | -9/Mines | Entered Exiles 967 | -9/Exiles | Accompanied by 1 ally 1016 | -9/Exiles | Discovered new exit (range 15) 1050 | -9/Exiles | Entered Mines 1050 | -8/Mines | Accompanied by 1 ally 1153 | -8/Mines | Lost 5 parts (1p2n2w) 1282 | -8/Mines | Core integrity fell below 50% 1303 | -8/Mines | Discovered new exit (range 6) 1317 | -8/Mines | Entered Materials 1317 | -8/Materials | Evolved 2 slots: Utility x1, Weapon x1 1448 | -8/Materials | Self-destructed Last Messages --------------- 01391_ Ion Cannon destroyed. 01391_ Imp. Heat Sink melted. 01391_ G-47 Trooper destroyed. 01402_ Critical hit (Smash). 01402_ Hrd. Light Armor Plating destroyed. 01402_ System corrupted by crushing effect (+5). 01402_ Knocked back. 01412_ Critical hit (Smash). 01412_ Imp. Heat Sink destroyed. 01412_ System corrupted by crushing effect (+3). 01425_ Med. Matter Pod destroyed. 01425_ System corrupted by crushing effect (+1). 01426_ System corrupted: Heat flow error (+278). 01427_ B-36 Bruiser destroyed. 01437_ G-47 Trooper knocked back. 01441_ Critical hit (Burn: +37). 01442_ Destroyed Lgt. Nuclear Core. 01442_ G-47 Trooper system corrupted by crushing effect. 01443_ G-47 Trooper system terminally corrupted. 01443_ Imp. Heat Sink fried. Map ----- +----------------------------------------------------+ | ?????????????????????????????????????????????????? | | ?????????????????????????????????????????????????? | | ?????????????????????????????????????????????????? | | ?????????????????????????????????????????????????? | | ?????????????????????????????????????????????????? | | ????????????????????#####????????????????????????? | | ?????????????######?# #????????????????????????? | | ?????????????# # #????????????????????????? | | ?????????????# "" # #????????????????????????? | | ?????????????# """ + #????????????????????????? | | ?????????????# S" # #????????????????????????? | | ?????????????# # #????????????????????????? | | ?????????????# ?# #????????????????????????? | | ??????????#########?# #########????????????????? | | ??????????? # #[ ?????????????????? | | ?????????????"" "" # # """?????????????????? | | ?????????????"" """ + # """""????????????????? | | ????????????""" R" # # """""????????????????? | | ??????????? """ # + """""????????????????? | | ??????????# ?# # """ ???????????????? | | ????????????? ?# # #??????????????? | | ???????????? ??# # ! #??????????????? | | ????????????######### ###########??????????????? | | ??????????# / ##########???????????????? | | ??????????# # #%= #???????????????? | | ??????????# " # #@ #???????????????? | | ??????????# ?# # """ #???????????????? | | ??????????# ?# # """ #???????????????? | | ??????????# |??# #= "" #???????????????? | | ??????????# ??# #%""" #???????????????? | | ??????????# ???# %+= "" #???????????????? | | ??????????#######???# %# #???????????????? | | ????????????????????# # #???????????????? | | ????????????????????# ##########???????????????? | | ???????????????????# ????????????????????????? | | ?????????????????? ????????????????????????? | | ????????????????? T ????????????????????????? | | ???????????????? #???????????????????????? | | ???????????????##### #???????????????????????? | | ???????????????????## ####???????????????????????? | | ????????????????????# ???????????????????????????? | | ????????????????????# ???????????????????????????? | | ????????????????????# ???????????????????????????? | | ?????????????????????????????????????????????????? | | ?????????????????????????????????????????????????? | | ?????????????????????????????????????????????????? | | ?????????????????????????????????????????????????? | | ?????????????????????????????????????????????????? | | ?????????????????????????????????????????????????? | | ?????????????????????????????????????????????????? | +----------------------------------------------------+ Best States ------------- Heat Dissipation 45 Energy Generation 14 Energy Capacity 250 Matter Stores 400 Matter Capacity 400 Sight Range 16 Terrain Scan Density 10 Armor Coverage 150 Evasion (%) 55 Item Schematics ----------------- None Robot Schematics ------------------ None Fabricated ------------ Nothing Alien Tech Used ----------------- None Achievements -------------- I Survived The Infestation Slippery One Challenges ------------ None Game ------ Seed SapperGuidanceCharger Manual? 0 Play Time 00:22:17 Cumulative 16.4 hours Start 2025.01.04 @ 18:45:10 End 2025.01.04 @ 19:05:45 Sessions 1 Manual Loads 0 Difficulty Rogue Special Mode None Game No. 26 Rogue 23 Adventurer 0 Explorer 3 Win Type - Total 0 Types 0/0/0/0/0/0/0/0/0 Lore% 3 Gallery% 20 Achievement% 20 Wizard Run 0 Options --------- Layout 0 ASCII 0 Keyboard 0 Movement Numpad Keybinds 0 Fullscreen 2 Font 16/SmallcapsGlow Map View 88x55 Zoom Use 0% Tactical HUD 1 Map Filters NONE Filters NONE Steam 1 RUN: 2de0769b-6b53-4094-b65f-ea9083647891